[Event "EYCC Open-U16 2019"]
[Site "Bratislava"]
[Date "2019.08.08"]
[Round "7.7"]
[White "Malovanyi, Yulian"]
[Black "Stefansson, Vignir Vatnar"]
[Result "1-0"]
[ECO "B23"]
[WhiteElo "2204"]
[BlackElo "2293"]
[Annotator "NA"]
[PlyCount "61"]
[EventDate "2019.08.02"]
[EventType "swiss"]
[EventCountry "SVK"]
[SourceTitle "playchess.com"]
[Source "ChessBase"]
[SourceQuality "1"]
[TimeControl "40/5400+30:1800+30"]

1. e4 {[%emt 0:00:00]} c5 {[%emt 0:00:04]} 2. Nc3 {[%emt 0:00:00]} Nc6 {[%emt 0:00:31]} 3. Nge2 {[%emt 0:00:00]} Nf6 {[%emt 0:03:08]} 4. g3 {[%emt 0:04:11]} e5 {[%emt 0:10:52]} 5. Bg2 {[%emt 0:01:02]} d6 {[%emt 0:00:11]} 6. O-O {[%emt 0:02:15]} g6 {[%emt 0:01:40]} 7. d3 {[%emt 0:01:13]} Bg7 {[%emt 0:01:57]} 8. h3 {[%emt 0:05:34]} O-O {[%emt 0:01:02]} 9. f4 {[%emt 0:05:04]} h6 {[%emt 0:06:55]} 10. Be3 {[%emt 0:10:56]} Nd4 {[%emt 0:01:05]} 11. Qd2 {[%emt 0:02:08]} Kh7 {[%emt 0:00:59]} 12. Rf2 {[%emt 0:11:02]} Bd7 {[%emt 0:04:35]} 13. Raf1 {[%emt 0:01:46]} Bc6 {[%emt 0:04:52]} 14. Kh2 {[%emt 0:07:22]} Qe7 {[%emt 0:08:57]} 15. Nd1 {[%emt 0:11:18]} Nxe2 {[%emt 0:22:36]} 16. Rxe2 {[%emt 0:04:51]} exf4 {[%emt 0:00:14]} 17. gxf4 {[%emt 0:02:16]} Nh5 {[%emt 0:00:31]} 18. Nc3 {[%emt 0:05:03]} f5 {[%emt 0:06:39]} 19. Nd5 {[%emt 0:06:17]} Bxd5 {[%emt 0:04:59]} 20. exd5 {[%emt 0:00:39]} Qh4 {[%emt 0:00:32]} 21. Qe1 {[%emt 0:02:12]} Qf6 {[%emt 0:00:05]} 22. Bc1 {[%emt 0:00:36]} Qd4 {[%emt 0:04:37]} 23. Re6 {[%emt 0:02:10]} g5 {[%emt 0:01:16]} 24. Qd1 {[%emt 0:04:32]} Nxf4 {[%emt 0:06:42]} 25. Bxf4 {[%emt 0:01:34]} gxf4 {[%emt 0:00:18]} 26. c3 {[%emt 0:00:28]} Qe3 {[%emt 0:00:04]} 27. Rxe3 {[%emt 0:00:06]} fxe3 {[%emt 0:00:01]} 28. Rxf5 {[%emt 0:08:19]} Rxf5 {[%emt 0:00:06]} 29. Be4 {[%emt 0:00:06]} Be5+ {[%emt 0:02:34]} 30. Kh1 {[%emt 0:00:33]} Raf8 {[%emt 0:00:11]} 31. Qh5 {[%emt 0:01:05]} 1-0

[Event "EYCC Open-U16 2019"]
[Site "Bratislava"]
[Date "2019.08.08"]
[Round "7.8"]
[White "Subelj, Jan"]
[Black "Cohen Revivo, Shoham"]
[Result "1-0"]
[ECO "C07"]
[WhiteElo "2425"]
[BlackElo "2254"]
[Annotator "NA"]
[PlyCount "85"]
[EventDate "2019.08.02"]
[EventType "swiss"]
[EventCountry "SVK"]
[SourceTitle "playchess.com"]
[Source "ChessBase"]
[SourceQuality "1"]
[TimeControl "40/5400+30:1800+30"]

1. e4 {[%emt 0:00:06]} e6 {[%emt 0:00:04]} 2. d4 {[%emt 0:00:11]} d5 {[%emt 0:00:13]} 3. Nd2 {[%emt 0:02:51]} c5 {[%emt 0:00:09]} 4. exd5 {[%emt 0:00:38]} Qxd5 {[%emt 0:00:07]} 5. Ngf3 {[%emt 0:00:42]} cxd4 {[%emt 0:00:13]} 6. Bc4 {[%emt 0:00:05]} Qd7 {[%emt 0:00:08]} 7. O-O {[%emt 0:00:32]} Nc6 {[%emt 0:00:10]} 8. Nb3 {[%emt 0:00:16]} a6 {[%emt 0:00:25]} 9. Nbxd4 {[%emt 0:00:48]} Nf6 {[%emt 0:00:16]} 10. Re1 {[%emt 0:11:29]} Nxd4 {[%emt 0:00:46]} 11. Nxd4 {[%emt 0:00:12]} Bc5 {[%emt 0:00:12]} 12. c3 {[%emt 0:00:42]} b5 {[%emt 0:00:58]} 13. Bb3 {[%emt 0:00:46]} Bb7 {[%emt 0:00:13]} 14. Bg5 {[%emt 0:01:10]} Ne4 {[%emt 0:00:07]} 15. Bh4 {[%emt 0:01:32]} g5 {[%emt 0:00:07]} 16. Bg3 {[%emt 0:00:14]} Nxg3 {[%emt 0:00:14]} 17. hxg3 {[%emt 0:00:30]} O-O-O {[%emt 0:00:15]} 18. Qh5 {[%emt 0:05:00]} Qe7 {[%emt 0:00:21]} 19. a4 {[%emt 0:08:58]} b4 {[%emt 0:08:40]} 20. Nf3 {[%emt 0:08:18]} bxc3 {[%emt 0:02:39]} 21. bxc3 {[%emt 0:00:34]} h6 {[%emt 0:04:01]} 22. Ne5 {[%emt 0:05:33]} Rd2 {[%emt 0:08:06]} 23. Re2 {[%emt 0:03:44]} Bxf2+ {[%emt 0:05:15]} 24. Kxf2 {[%emt 0:00:37]} Qc5+ {[%emt 0:01:39]} 25. Kf1 {[%emt 0:02:02]} Rhd8 {[%emt 0:05:53]} 26. Rae1 {[%emt 0:19:05]} Qxc3 {[%emt 0:02:55]} 27. Re3 {[%emt 0:01:16]} Bxg2+ {[%emt 0:05:56]} 28. Kg1 {[%emt 0:01:38]} Qc5 {[%emt 0:07:59]} 29. Qxf7 {[%emt 0:03:08]} Bb7 {[%emt 0:04:21]} 30. Nf3 {[%emt 0:05:52]} R2d6 {[%emt 0:06:51]} 31. R1e2 {[%emt 0:07:27]} Kb8 {[%emt 0:00:44]} 32. Bc2 {[%emt 0:02:50]} g4 {[%emt 0:00:49]} 33. Ne1 {[%emt 0:00:04]} Rd2 {[%emt 0:03:25]} 34. Qf2 {[%emt 0:01:59]} Rxc2 {[%emt 0:09:07]} 35. Rxc2 {[%emt 0:01:34]} Qd5 {[%emt 0:00:16]} 36. Qf4+ {[%emt 0:01:00]} Ka8 {[%emt 0:00:43]} 37. Rh2 {[%emt 0:00:06]} Qc5 {[%emt 0:01:06]} 38. Qf2 {[%emt 0:01:41]} Qb4 {[%emt 0:02:40]} 39. Rxh6 {[%emt 0:00:52]} Rf8 {[%emt 0:00:47]} 40. Rb3 {[%emt 0:00:00]} Qe7 {[%emt 0:00:00]} 41. Rxe6 {[%emt 0:04:57]} Qg7 {[%emt 0:01:41]} 42. Qb6 {[%emt 0:00:30]} Qf7 {[%emt 0:01:34]} 43. Rf6 {[%emt 0:00:37]} 1-0

[Event "EYCC Open-U16 2019"]
[Site "Bratislava"]
[Date "2019.08.08"]
[Round "7.9"]
[White "Horvath, Dominik"]
[Black "Haring, Filip"]
[Result "1/2-1/2"]
[ECO "B38"]
[WhiteElo "2424"]
[BlackElo "2334"]
[Annotator "NA"]
[PlyCount "38"]
[EventDate "2019.08.02"]
[EventType "swiss"]
[EventCountry "SVK"]
[SourceTitle "playchess.com"]
[Source "ChessBase"]
[SourceQuality "1"]
[TimeControl "40/5400+30:1800+30"]

1. c4 {[%emt 0:00:00]} c5 {[%emt 0:00:00]} 2. Nf3 {[%emt 0:00:00]} g6 {[%emt 0:01:00]} 3. e4 {[%emt 0:00:00]} Bg7 {[%emt 0:00:30]} 4. d4 {[%emt 0:00:00]} cxd4 {[%emt 0:00:33]} 5. Nxd4 {[%emt 0:00:04]} Nc6 {[%emt 0:00:44]} 6. Be3 {[%emt 0:00:05]} d6 {[%emt 0:01:03]} 7. Nc3 {[%emt 0:00:08]} Qb6 {[%emt 0:00:04]} 8. Ndb5 {[%emt 0:04:40]} Bxc3+ {[%emt 0:00:20]} 9. Nxc3 {[%emt 0:12:05]} Qxb2 {[%emt 0:00:34]} 10. Nd5 {[%emt 0:00:08]} Nb4 {[%emt 0:02:36]} 11. Nxb4 {[%emt 0:12:37]} Qxb4+ {[%emt 0:00:32]} 12. Bd2 {[%emt 0:00:03]} Qb2 {[%emt 0:05:53]} 13. Rb1 {[%emt 0:01:22]} Qe5 {[%emt 0:07:23]} 14. Qf3 {[%emt 0:09:21]} Bf5 {[%emt 0:19:12]} 15. Bd3 {[%emt 0:01:06]} Nf6 {[%emt 0:00:47]} 16. Bf4 {[%emt 0:05:11]} Qc3+ {[%emt 0:10:27]} 17. Bd2 {[%emt 0:00:22]} Qe5 {[%emt 0:00:54]} 18. Bf4 {[%emt 0:00:11]} Qc3+ {[%emt 0:00:48]} 19. Bd2 {[%emt 0:05:51]} Qe5 {[%emt 0:00:34]} 1/2-1/2

[Event "EYCC Open-U16 2019"]
[Site "Bratislava"]
[Date "2019.08.08"]
[Round "7.10"]
[White "Stoyanov, Tsvetan"]
[Black "Mukhutdinov, Tigran"]
[Result "1-0"]
[ECO "B32"]
[WhiteElo "2387"]
[BlackElo "2328"]
[Annotator "NA"]
[PlyCount "59"]
[EventDate "2019.08.02"]
[EventType "swiss"]
[EventCountry "SVK"]
[SourceTitle "playchess.com"]
[Source "ChessBase"]
[SourceQuality "1"]
[TimeControl "40/5400+30:1800+30"]

1. e4 {[%emt 0:00:00]} c5 {[%emt 0:00:00]} 2. Nf3 {[%emt 0:00:00]} Nc6 {[%emt 0:00:00]} 3. d4 {[%emt 0:05:17]} cxd4 {[%emt 0:00:00]} 4. Nxd4 {[%emt 0:00:06]} e5 {[%emt 0:00:31]} 5. Nb5 {[%emt 0:01:37]} d6 {[%emt 0:00:37]} 6. c4 {[%emt 0:00:50]} Be7 {[%emt 0:00:29]} 7. N1c3 {[%emt 0:00:59]} a6 {[%emt 0:00:37]} 8. Na3 {[%emt 0:00:01]} f5 {[%emt 0:00:12]} 9. exf5 {[%emt 0:02:38]} Bxf5 {[%emt 0:00:24]} 10. Bd3 {[%emt 0:00:25]} Be6 {[%emt 0:01:07]} 11. Qh5+ {[%emt 0:01:36]} Bf7 {[%emt 0:01:02]} 12. Qh3 {[%emt 0:00:05]} Nf6 {[%emt 0:00:43]} 13. O-O {[%emt 0:07:13]} Nd4 {[%emt 0:10:30]} 14. f4 {[%emt 0:27:54]} Qc8 {[%emt 0:08:38]} 15. Qxc8+ {[%emt 0:12:33]} Rxc8 {[%emt 0:00:05]} 16. Bd2 {[%emt 0:03:09]} O-O {[%emt 0:07:43]} 17. Rae1 {[%emt 0:04:14]} Rfe8 {[%emt 0:03:10]} 18. Ne4 {[%emt 0:07:40]} exf4 {[%emt 0:07:21]} 19. Ng5 {[%emt 0:05:08]} f3 {[%emt 0:07:13]} 20. Nxf7 {[%emt 0:01:08]} Kxf7 {[%emt 0:01:12]} 21. gxf3 {[%emt 0:00:04]} d5 {[%emt 0:11:24]} 22. cxd5 {[%emt 0:01:55]} b5 {[%emt 0:04:13]} 23. Be4 {[%emt 0:08:40]} b4 {[%emt 0:04:30]} 24. Be3 {[%emt 0:05:07]} bxa3 {[%emt 0:09:11]} 25. Bxd4 Rc4 {[%emt 0:00:36]} 26. Bxf6 {[%emt 0:01:53]} gxf6 {[%emt 0:04:22]} 27. d6 {[%emt 0:00:31]} Rg8+ {[%emt 0:03:11]} 28. Kh1 {[%emt 0:00:09]} Rxe4 {[%emt 0:00:20]} 29. fxe4 {[%emt 0:01:44]} Bxd6 {[%emt 0:00:35]} 30. e5 {[%emt 0:00:04]} 1-0

[Event "EYCC Open-U16 2019"]
[Site "Bratislava"]
[Date "2019.08.08"]
[Round "7.11"]
[White "Svane, Frederik"]
[Black "Peyrer, Konstantin"]
[Result "1/2-1/2"]
[ECO "C78"]
[WhiteElo "2334"]
[BlackElo "2305"]
[Annotator "NA"]
[PlyCount "57"]
[EventDate "2019.08.02"]
[EventType "swiss"]
[EventCountry "SVK"]
[SourceTitle "playchess.com"]
[Source "ChessBase"]
[SourceQuality "1"]
[TimeControl "40/5400+30:1800+30"]

1. e4 {[%emt 0:00:00]} e5 {[%emt 0:00:00]} 2. Nf3 {[%emt 0:00:00]} Nc6 {[%emt 0:00:00]} 3. Bb5 {[%emt 0:00:00]} a6 {[%emt 0:00:00]} 4. Ba4 {[%emt 0:00:00]} Nf6 {[%emt 0:00:00]} 5. O-O {[%emt 0:00:00]} b5 {[%emt 0:00:00]} 6. Bb3 {[%emt 0:00:11]} Bc5 {[%emt 0:00:00]} 7. a4 {[%emt 0:00:36]} Rb8 {[%emt 0:00:00]} 8. c3 {[%emt 0:09:03]} d6 {[%emt 0:00:00]} 9. d4 {[%emt 0:00:10]} Bb6 {[%emt 0:00:04]} 10. a5 {[%emt 0:07:13]} Ba7 {[%emt 0:00:03]} 11. Be3 {[%emt 0:00:10]} Ra8 {[%emt 0:04:49]} 12. dxe5 {[%emt 0:15:40]} Nxe5 {[%emt 0:00:00]} 13. Nxe5 {[%emt 0:02:30]} dxe5 {[%emt 0:00:00]} 14. Qxd8+ {[%emt 0:01:03]} Kxd8 {[%emt 0:00:00]} 15. Bxa7 {[%emt 0:02:16]} Rxa7 {[%emt 0:00:00]} 16. Bxf7 {[%emt 0:00:29]} Nxe4 {[%emt 0:00:10]} 17. Bd5 {[%emt 0:01:48]} Nf6 {[%emt 0:00:44]} 18. Bf3 {[%emt 0:02:44]} e4 {[%emt 0:02:36]} 19. Be2 {[%emt 0:03:10]} Be6 {[%emt 0:02:10]} 20. Nd2 {[%emt 0:02:38]} Ke7 {[%emt 0:00:38]} 21. Rfd1 {[%emt 0:05:18]} Rd8 {[%emt 0:02:32]} 22. f3 {[%emt 0:14:53]} exf3 {[%emt 0:08:10]} 23. Nxf3 {[%emt 0:00:20]} Rxd1+ {[%emt 0:06:32]} 24. Rxd1 {[%emt 0:00:07]} c5 {[%emt 0:00:55]} 25. Ne5 {[%emt 0:00:52]} Rc7 {[%emt 0:00:10]} 26. Bf3 {[%emt 0:00:18]} Bb3 {[%emt 0:00:54]} 27. Rd2 {[%emt 0:05:46]} Ke6 {[%emt 0:05:07]} 28. Nd3 {[%emt 0:00:58]} g5 {[%emt 0:04:02]} 29. Re2+ {[%emt 0:03:53] Ke5} 1/2-1/2

[Event "EYCC Open-U16 2019"]
[Site "Bratislava"]
[Date "2019.08.08"]
[Round "7.12"]
[White "Remizov, Yaroslav"]
[Black "Svanda, Ondrej"]
[Result "1/2-1/2"]
[ECO "B90"]
[WhiteElo "2357"]
[BlackElo "2234"]
[Annotator "NA"]
[PlyCount "50"]
[EventDate "2019.08.02"]
[EventType "swiss"]
[EventCountry "SVK"]
[SourceTitle "playchess.com"]
[Source "ChessBase"]
[SourceQuality "1"]
[TimeControl "40/5400+30:1800+30"]

1. e4 {[%emt 0:00:00]} c5 {[%emt 0:00:00]} 2. Nf3 {[%emt 0:00:00]} d6 {[%emt 0:00:00]} 3. d4 {[%emt 0:00:00]} cxd4 {[%emt 0:00:00]} 4. Nxd4 {[%emt 0:00:00]} Nf6 {[%emt 0:00:00]} 5. Nc3 {[%emt 0:00:00]} a6 {[%emt 0:00:00]} 6. Be3 {[%emt 0:00:44]} e5 {[%emt 0:00:29]} 7. Nf3 {[%emt 0:00:29]} Be7 {[%emt 0:00:58]} 8. Bc4 {[%emt 0:01:19]} O-O {[%emt 0:00:06]} 9. O-O {[%emt 0:00:42]} Nc6 {[%emt 0:00:32]} 10. a4 {[%emt 0:03:40]} Be6 {[%emt 0:01:29]} 11. Qe2 {[%emt 0:13:31]} Nb4 {[%emt 0:12:52]} 12. Bxe6 {[%emt 0:12:42]} fxe6 {[%emt 0:00:05]} 13. Qc4 {[%emt 0:00:50]} d5 {[%emt 0:09:50]} 14. Qb3 {[%emt 0:11:19]} d4 {[%emt 0:16:52]} 15. Ng5 {[%emt 0:02:49]} Qe8 {[%emt 0:04:23]} 16. f4 {[%emt 0:16:30]} dxe3 {[%emt 0:18:34]} 17. fxe5 {[%emt 0:06:34]} e2 {[%emt 0:00:11]} 18. Nxe2 {[%emt 0:03:46]} Bc5+ {[%emt 0:00:52]} 19. Kh1 {[%emt 0:00:14]} Ng4 {[%emt 0:00:07]} 20. Rxf8+ {[%emt 0:08:28]} Bxf8 {[%emt 0:00:46]} 21. Rf1 {[%emt 0:01:01]} Qe7 {[%emt 0:07:32]} 22. Nxe6 {[%emt 0:03:37]} Kh8 {[%emt 0:00:06]} 23. N2d4 {[%emt 0:05:26]} Nxe5 {[%emt 0:08:21]} 24. Nf5 {[%emt 0:01:22]} Qf7 {[%emt 0:00:23]} 25. Ne3 {[%emt 0:02:16]} Qe7 {[%emt 0:00:20]} 1/2-1/2

[Event "EYCC Open-U16 2019"]
[Site "Bratislava"]
[Date "2019.08.08"]
[Round "7.13"]
[White "Ongut, Tamas Gunes"]
[Black "Degraeve, Remy"]
[Result "1-0"]
[ECO "C45"]
[WhiteElo "2158"]
[BlackElo "2349"]
[Annotator "NA"]
[PlyCount "79"]
[EventDate "2019.08.02"]
[EventType "swiss"]
[EventCountry "SVK"]
[SourceTitle "playchess.com"]
[Source "ChessBase"]
[SourceQuality "1"]
[TimeControl "40/5400+30:1800+30"]

1. e4 {[%emt 0:00:00]} e5 {[%emt 0:00:00]} 2. Nf3 {[%emt 0:00:00]} Nc6 {[%emt 0:00:00]} 3. d4 {[%emt 0:00:00]} exd4 {[%emt 0:00:00]} 4. Nxd4 {[%emt 0:00:00]} Nf6 {[%emt 0:00:06]} 5. Nxc6 {[%emt 0:00:00]} bxc6 {[%emt 0:00:02]} 6. e5 {[%emt 0:00:08]} Qe7 {[%emt 0:00:03]} 7. Qe2 {[%emt 0:00:05]} Nd5 {[%emt 0:00:04]} 8. c4 {[%emt 0:00:05]} Ba6 {[%emt 0:00:05]} 9. b3 {[%emt 0:00:06]} g6 {[%emt 0:02:33]} 10. Ba3 {[%emt 0:00:07]} Qh4 {[%emt 0:05:32]} 11. Bb2 {[%emt 0:23:09]} Bb4+ {[%emt 0:01:04]} 12. Nd2 {[%emt 0:00:50]} Nc3 {[%emt 0:02:02]} 13. g3 {[%emt 0:16:29]} Qd4 {[%emt 0:04:43]} 14. Qd3 {[%emt 0:00:25]} Qxe5+ {[%emt 0:01:24]} 15. Qe3 {[%emt 0:00:06]} Qxe3+ {[%emt 0:12:16]} 16. fxe3 {[%emt 0:00:07]} Ne4 {[%emt 0:01:15]} 17. Bxh8 {[%emt 0:00:08]} O-O-O {[%emt 0:10:37]} 18. O-O-O {[%emt 0:05:37]} Bxd2+ {[%emt 0:10:07]} 19. Rxd2 {[%emt 0:00:13]} Nxd2 {[%emt 0:00:04]} 20. Bf6 {[%emt 0:00:13]} Nxf1 {[%emt 0:00:05]} 21. Bxd8 {[%emt 0:00:05]} Nxe3 {[%emt 0:00:21]} 22. Bg5 {[%emt 0:02:15]} Nf5 {[%emt 0:04:04]} 23. g4 {[%emt 0:10:31]} Ng7 {[%emt 0:02:13]} 24. Rf1 {[%emt 0:03:34]} Ne6 {[%emt 0:01:15]} 25. Be3 {[%emt 0:01:50]} Nd8 {[%emt 0:01:52]} 26. Bg5 {[%emt 0:03:07]} Ne6 {[%emt 0:00:18]} 27. h4 {[%emt 0:00:33]} d5 {[%emt 0:00:29]} 28. Rxf7 {[%emt 0:00:09]} dxc4 {[%emt 0:01:05]} 29. Be3 {[%emt 0:03:12]} cxb3 {[%emt 0:02:33]} 30. axb3 {[%emt 0:00:03]} h5 {[%emt 0:01:42]} 31. Re7 {[%emt 0:00:07]} Nd8 {[%emt 0:00:06]} 32. Bg5 {[%emt 0:00:07]} Nb7 {[%emt 0:01:29]} 33. gxh5 {[%emt 0:01:42]} gxh5 {[%emt 0:00:05]} 34. Bf4 {[%emt 0:00:30]} Nc5 {[%emt 0:01:12]} 35. Rxc7+ {[%emt 0:03:02]} Kd8 {[%emt 0:00:01]} 36. Rxc6 {[%emt 0:00:21]} Nd3+ {[%emt 0:01:19]} 37. Kd2 {[%emt 0:00:07]} Nb4 {[%emt 0:00:13]} 38. Rc5 {[%emt 0:00:48]} Ke7 {[%emt 0:00:47]} 39. Kc3 {[%emt 0:02:25]} Nd3 {[%emt 0:01:32]} 40. Bg5+ {[%emt 0:00:00]} 1-0

[Event "EYCC Open-U16 2019"]
[Site "Bratislava"]
[Date "2019.08.08"]
[Round "7.14"]
[White "Milosevic, Milos"]
[Black "Kazmin, Semen"]
[Result "1-0"]
[ECO "C18"]
[WhiteElo "2312"]
[BlackElo "2193"]
[Annotator "NA"]
[PlyCount "83"]
[EventDate "2019.08.02"]
[EventType "swiss"]
[EventCountry "SVK"]
[SourceTitle "playchess.com"]
[Source "ChessBase"]
[SourceQuality "1"]
[TimeControl "40/5400+30:1800+30"]

1. e4 {[%emt 0:00:00]} e6 {[%emt 0:00:00]} 2. d4 {[%emt 0:00:00]} d5 {[%emt 0:00:00]} 3. Nc3 {[%emt 0:00:00]} Bb4 {[%emt 0:00:00]} 4. e5 {[%emt 0:00:00]} c5 {[%emt 0:00:02]} 5. a3 {[%emt 0:00:00]} Bxc3+ {[%emt 0:00:07]} 6. bxc3 {[%emt 0:00:00]} Ne7 {[%emt 0:00:08]} 7. Qg4 {[%emt 0:00:00]} Qc7 {[%emt 0:00:08]} 8. Bd3 {[%emt 0:00:15]} cxd4 {[%emt 0:02:42]} 9. Ne2 {[%emt 0:00:02]} dxc3 {[%emt 0:00:42]} 10. Qxg7 {[%emt 0:00:58]} Rg8 {[%emt 0:00:17]} 11. Qxh7 {[%emt 0:00:05]} Nbc6 {[%emt 0:02:11]} 12. Bf4 {[%emt 0:00:34]} Bd7 {[%emt 0:04:00]} 13. Bg3 {[%emt 0:01:04]} O-O-O {[%emt 0:01:33]} 14. Qxf7 {[%emt 0:06:23]} Rdf8 {[%emt 0:01:06]} 15. Qh5 {[%emt 0:01:31]} Nf5 {[%emt 0:00:57]} 16. Bxf5 {[%emt 0:07:46]} Rxf5 {[%emt 0:00:10]} 17. Qh4 {[%emt 0:05:20]} Qb6 {[%emt 0:05:18]} 18. O-O {[%emt 0:02:28]} Qc5 {[%emt 0:02:17]} 19. Rab1 {[%emt 0:10:22]} Rfg5 {[%emt 0:04:16]} 20. Rb3 {[%emt 0:09:51]} d4 {[%emt 0:00:20]} 21. Rfb1 {[%emt 0:02:58]} Rg4 {[%emt 0:01:40]} 22. Qh7 {[%emt 0:00:45]} Na5 {[%emt 0:05:33]} 23. Rb4 {[%emt 0:01:39]} Rd8 {[%emt 0:10:50]} 24. h3 {[%emt 0:04:19]} Rgg8 {[%emt 0:01:46]} 25. Qd3 {[%emt 0:00:34]} Bc6 {[%emt 0:05:22]} 26. Rxd4 {[%emt 0:02:59]} Qxa3 {[%emt 0:00:58]} 27. Rd1 {[%emt 0:00:58]} Rxd4 {[%emt 0:02:24]} 28. Qxd4 {[%emt 0:00:06]} b6 {[%emt 0:03:02]} 29. Nxc3 {[%emt 0:01:41]} Qb2 {[%emt 0:05:37]} 30. Qd3 {[%emt 0:07:14]} Rg7 {[%emt 0:01:47]} 31. Ne4 {[%emt 0:01:37]} Rd7 {[%emt 0:03:24]} 32. Nd6+ {[%emt 0:00:15]} Kb8 {[%emt 0:00:06]} 33. Qg6 {[%emt 0:00:32]} Rd8 {[%emt 0:01:58]} 34. h4 {[%emt 0:04:00]} Nb7 {[%emt 0:01:19]} 35. h5 {[%emt 0:09:42]} a5 {[%emt 0:00:24]} 36. h6 {[%emt 0:02:15]} a4 {[%emt 0:00:06]} 37. h7 {[%emt 0:10:34]} a3 {[%emt 0:00:06]} 38. Qg8 {[%emt 0:02:17]} Qxc2 {[%emt 0:01:35]} 39. Rf1 {[%emt 0:01:45]} a2 {[%emt 0:00:11]} 40. Qxd8+ {[%emt 0:00:00]} Nxd8 {[%emt 0:00:00]} 41. h8=Q {[%emt 0:02:40]} Kc7 {[%emt 0:00:09]} 42. Bh4 {[%emt 0:00:22]} 1-0

[Event "EYCC Open-U16 2019"]
[Site "Bratislava"]
[Date "2019.08.08"]
[Round "7.15"]
[White "Sargsyan, Tigran R."]
[Black "Bukatin, Arseny"]
[Result "1-0"]
[ECO "D00"]
[WhiteElo "2314"]
[BlackElo "2016"]
[Annotator "NA"]
[PlyCount "81"]
[EventDate "2019.08.02"]
[EventType "swiss"]
[EventCountry "SVK"]
[SourceTitle "playchess.com"]
[Source "ChessBase"]
[SourceQuality "1"]
[TimeControl "40/5400+30:1800+30"]

1. d4 {[%emt 0:00:00]} d5 {[%emt 0:00:00]} 2. Bf4 {[%emt 0:00:19]} Nf6 {[%emt 0:00:00]} 3. e3 {[%emt 0:00:12]} e6 {[%emt 0:00:00]} 4. Nf3 {[%emt 0:00:52]} c5 {[%emt 0:00:00]} 5. c3 {[%emt 0:00:12]} Nc6 {[%emt 0:00:05]} 6. Nbd2 {[%emt 0:00:23]} Bd6 {[%emt 0:00:08]} 7. Bg3 {[%emt 0:00:09]} O-O {[%emt 0:00:30]} 8. Bb5 {[%emt 0:00:28]} Bxg3 {[%emt 0:28:51]} 9. hxg3 {[%emt 0:00:36]} Qb6 {[%emt 0:00:19]} 10. Bxc6 {[%emt 0:02:51]} bxc6 {[%emt 0:00:21]} 11. Qc2 {[%emt 0:02:18]} Rb8 {[%emt 0:07:22]} 12. Rb1 {[%emt 0:06:15]} Ba6 {[%emt 0:08:58]} 13. Ne5 {[%emt 0:03:38]} g6 {[%emt 0:03:33]} 14. Nb3 {[%emt 0:05:38]} cxd4 {[%emt 0:00:28]} 15. exd4 {[%emt 0:00:56]} Bc4 {[%emt 0:12:33]} 16. Nxc4 {[%emt 0:22:11]} dxc4 {[%emt 0:00:04]} 17. Nc5 {[%emt 0:00:40]} e5 {[%emt 0:02:08]} 18. O-O {[%emt 0:01:20]} exd4 {[%emt 0:06:08]} 19. cxd4 {[%emt 0:01:21]} Rfd8 {[%emt 0:00:04]} 20. Qxc4 {[%emt 0:02:08]} Qb4 {[%emt 0:01:21]} 21. Qxb4 {[%emt 0:00:32]} Rxb4 {[%emt 0:00:10]} 22. Nb3 {[%emt 0:00:22]} Ne4 {[%emt 0:02:42]} 23. Rfc1 {[%emt 0:05:44]} Rd6 {[%emt 0:02:16]} 24. Rc2 {[%emt 0:01:04]} Rb5 {[%emt 0:05:31]} 25. Re1 {[%emt 0:04:35]} f5 {[%emt 0:00:16]} 26. g4 {[%emt 0:04:44]} a5 {[%emt 0:00:43]} 27. gxf5 {[%emt 0:00:17]} gxf5 {[%emt 0:00:04]} 28. Rc4 {[%emt 0:01:30]} Kf7 {[%emt 0:01:43]} 29. f3 {[%emt 0:00:48]} Nf6 {[%emt 0:00:31]} 30. Ra4 {[%emt 0:01:55]} Nd7 {[%emt 0:02:44]} 31. Rxa5 {[%emt 0:02:14]} Rxa5 {[%emt 0:00:06]} 32. Nxa5 {[%emt 0:00:07]} Rxd4 {[%emt 0:00:01]} 33. Nxc6 {[%emt 0:00:59]} Rd2 {[%emt 0:00:43]} 34. Re7+ {[%emt 0:01:58]} Kf6 {[%emt 0:00:58]} 35. Rxh7 {[%emt 0:00:30]} Nc5 {[%emt 0:00:10]} 36. b4 {[%emt 0:00:48]} Ne6 {[%emt 0:00:38]} 37. Rh6+ {[%emt 0:01:17]} Kf7 {[%emt 0:00:08]} 38. Ne5+ {[%emt 0:00:22]} Ke7 {[%emt 0:00:12]} 39. a4 {[%emt 0:00:12]} Nf4 {[%emt 0:00:39]} 40. Ng6+ {[%emt 0:00:00]} Nxg6 {[%emt 0:00:00]} 41. Rxg6 {[%emt 0:00:33]} 1-0

[Event "EYCC Open-U16 2019"]
[Site "Bratislava"]
[Date "2019.08.08"]
[Round "7.16"]
[White "Timoshin, Andrei"]
[Black "Mis, Mieszko"]
[Result "1/2-1/2"]
[ECO "B50"]
[WhiteElo "2154"]
[BlackElo "2284"]
[Annotator "NA"]
[PlyCount "76"]
[EventDate "2019.08.02"]
[EventType "swiss"]
[EventCountry "SVK"]
[SourceTitle "playchess.com"]
[Source "ChessBase"]
[SourceQuality "1"]
[TimeControl "40/5400+30:1800+30"]

1. e4 {[%emt 0:00:00]} c5 {[%emt 0:00:00]} 2. Nf3 {[%emt 0:00:00]} d6 {[%emt 0:00:00]} 3. d4 {[%emt 0:00:00]} Nf6 {[%emt 0:01:50]} 4. Nc3 {[%emt 0:04:53]} cxd4 {[%emt 0:01:01]} 5. Qxd4 {[%emt 0:00:11]} a6 {[%emt 0:07:29]} 6. h3 {[%emt 0:00:47]} Nc6 {[%emt 0:00:49]} 7. Qe3 {[%emt 0:01:33]} g6 {[%emt 0:03:58]} 8. Bd2 {[%emt 0:10:11]} Bg7 {[%emt 0:06:12]} 9. Nd5 {[%emt 0:03:50]} O-O {[%emt 0:06:45]} 10. c4 {[%emt 0:14:31]} Rb8 {[%emt 0:07:17]} 11. Bd3 {[%emt 0:24:04]} b5 {[%emt 0:08:07]} 12. cxb5 {[%emt 0:00:20]} axb5 {[%emt 0:00:25]} 13. O-O {[%emt 0:00:59]} Be6 {[%emt 0:07:25]} 14. Nxf6+ {[%emt 0:01:22]} Bxf6 {[%emt 0:00:34]} 15. Rac1 {[%emt 0:00:13]} Ne5 {[%emt 0:12:20]} 16. Nxe5 {[%emt 0:00:59]} Bxe5 {[%emt 0:00:04]} 17. b3 {[%emt 0:03:31]} b4 {[%emt 0:06:31]} 18. f4 {[%emt 0:11:55]} Bg7 {[%emt 0:01:43]} 19. f5 {[%emt 0:01:48]} Bd7 {[%emt 0:02:07]} 20. Qf3 {[%emt 0:00:54]} Bb5 {[%emt 0:02:35]} 21. Bg5 {[%emt 0:04:07]} Qd7 {[%emt 0:06:08]} 22. f6 {[%emt 0:04:35]} exf6 {[%emt 0:02:14]} 23. Bxb5 {[%emt 0:00:01]} Rxb5 {[%emt 0:01:01]} 24. Bxf6 {[%emt 0:00:12]} Bxf6 {[%emt 0:02:40]} 25. Qxf6 {[%emt 0:00:03]} Re8 {[%emt 0:01:08]} 26. Rc4 {[%emt 0:01:04]} d5 {[%emt 0:02:02]} 27. exd5 {[%emt 0:01:24]} Qxd5 {[%emt 0:04:21]} 28. Rc7 {[%emt 0:04:19]} Rf8 {[%emt 0:01:10]} 29. Rf4 {[%emt 0:00:58]} Rb7 {[%emt 0:02:35]} 30. Rxb7 {[%emt 0:02:56]} Qxb7 {[%emt 0:00:02]} 31. Qd6 {[%emt 0:00:40]} Qa7+ {[%emt 0:00:15]} 32. Kh2 {[%emt 0:00:37]} Qxa2 {[%emt 0:00:23]} 33. Rxb4 {[%emt 0:00:26]} Qa3 {[%emt 0:01:22]} 34. Qf4 {[%emt 0:00:03]} Qa7 {[%emt 0:01:40]} 35. Rb5 {[%emt 0:03:26]} Re8 {[%emt 0:00:45]} 36. Qg3 {[%emt 0:00:34]} Rd8 {[%emt 0:01:48]} 37. Qe5 {[%emt 0:00:26]} Qa8 {[%emt 0:00:53]} 38. b4 {[%emt 0:00:24]} Re8 {[%emt 0:00:14]} 1/2-1/2